fUST/lending_fUST_20260103
["ID","MTS","AMOUNT","RATE_DAILY","PERIOD"]
[400372157,1767450639764,-1730.16,0.00013698,2]
[400372158,1767450639774,-1730.16,0.00013698,2]
[400372159,1767450639784,-1730.16,0.00013698,2]
[400372160,1767450639794,-153.86318297,0.00013698,2]
[400372161,1767450640207,-3e-08,0.00013698,2]
[400372174,1767450645334,-390.52364031,0.00013698,2]
[400372175,1767450645347,-1185.77317669,0.00013698,2]
[400372176,1767450645357,-1730.16,0.00013698,2]
[400372177,1767450645367,-1730.16,0.00013698,2]
[400372178,1767450645378,-1730.16,0.00013698,2]
[400372179,1767450645388,-1730.16,0.00013698,2]
[400372180,1767450645399,-1730.16,0.00013698,2]
[400372181,1767450645409,-1730.16,0.00013698,2]
[400372182,1767450645419,-1730.16,0.00013698,2]
[400372183,1767450645434,-1730.16,0.00013698,2]
[400372184,1767450645443,-34.2546021,0.00013698,2]
[400372189,1767450646600,-1695.9053979,0.00013698,2]
[400372190,1767450646611,-1730.16,0.00013698,2]
[400372191,1767450646620,-1730.18390779,0.00013698,2]
[400372192,1767450646630,-1075.842334,0.00013699,2]
[400372193,1767450646640,-888.65955533,0.00013699,2]
[400372194,1767450646703,183.16,0.00011566,2]
[400372195,1767450646784,244.21,0.00012069,2]
[400372199,1767450681203,10000.01,0.00012086,2]
[400372200,1767450681235,10000.01,0.00012086,2]
[400372201,1767450681268,10000.01,0.00012086,2]
[400372202,1767450681302,10000.01,0.00012086,2]
[400372203,1767450681334,10000.01,0.00012086,2]
[400372204,1767450681365,10000.01,0.00012086,2]
[400372205,1767450681398,10000.01,0.00012086,2]
[400372206,1767450681429,10000.01,0.00012086,2]
[400372207,1767450681461,10000.01,0.00012086,2]
[400372208,1767450681492,10000.01,0.00012086,2]
[400372212,1767450725706,-266.14,0.00010684,2]
[400372213,1767450725746,-300.0,0.00012085,2]
[400372214,1767450725925,399.21,0.0001117,2]
[400372215,1767450726613,532.28,0.00011656,2]
[400372217,1767450738875,2186.13838379,0.00012086,2]
[400372218,1767450753636,-5473.52456826,0.00012086,2]
[400372219,1767450753743,-10000.01,0.00012086,2]
[400372220,1767450753874,-10000.01,0.00012086,2]
[400372221,1767450754334,-10000.01,0.00012086,2]
[400372222,1767450754394,-10000.01,0.00012086,2]
[400372223,1767450754718,-10000.01,0.00012086,2]
[400372224,1767450754843,-10000.01,0.00012086,2]
[400372225,1767450755021,-10000.01,0.00012086,2]
[400372226,1767450755158,-10000.01,0.00012086,2]
[400372227,1767450780905,-1956.22946859,0.00011965,2]
[400372228,1767450780937,-1408.04288919,0.00012041,2]
[400372229,1767450781003,-3271.46528444,0.00012041,2]
[400372230,1767450782399,300.0,0.00012085,2]
[400372231,1767450784289,300.0,0.00012085,2]
[400372232,1767450795681,4057.08300385,0.00012086,2]
[400372233,1767450796413,1200.0,0.00012085,2]
[400372234,1767450809591,219.67,0.00010193,2]
[400372235,1767450810149,439.34,0.00010679,2]
[400372236,1767450810770,659.01,0.00011164,2]
[400372237,1767450811246,878.68,0.0001165,2]
[400372238,1767450812112,526.28253817,0.00012085,2]
[400372239,1767450812249,526.28253817,0.00012085,2]
[400372240,1767450812353,526.28253817,0.00012085,2]
[400372241,1767450812388,367.37938164,0.00012085,2]
[400372242,1767450812416,158.90315653,0.00012085,2]
[400372243,1767450812462,526.28253817,0.00012085,2]
[400372244,1767450812575,526.28253817,0.00012085,2]
[400372245,1767450812685,526.28253817,0.00012085,2]
[400372246,1767450812795,526.28253817,0.00012085,2]
[400372247,1767450812830,526.28253817,0.00012085,2]
[400372248,1767450812901,526.28253817,0.00012085,2]
[400372249,1767450813190,526.28253817,0.00012085,2]
[400372250,1767450813295,-6157.12907628,0.00012086,2]
[400372251,1767450813412,526.28253817,0.00012085,2]
[400372252,1767450813485,-9473.72746183,0.00012086,2]
[400372253,1767450813626,526.28253817,0.00012085,2]
[400372254,1767450813672,526.28253817,0.00012085,2]
[400372255,1767450813707,-8947.44492366,0.00012086,2]
[400372256,1767450813765,526.28253817,0.00012085,2]
[400372257,1767450813862,-9473.72746183,0.00012086,2]
[400372258,1767450814006,-10000.01,0.00012086,2]
[400372259,1767450814172,-10000.01,0.00012086,2]
[400372261,1767450825086,-500.0,0.00012085,2]
[400372262,1767450825124,-500.0,0.00012085,2]
[400372263,1767450825164,-500.0,0.00012085,2]
[400372264,1767450825198,-500.0,0.00012085,2]
[400372265,1767450825237,-500.0,0.00012085,2]
[400372266,1767450825271,-289.25749094,0.00012085,2]
[400372267,1767450825312,-500.0,0.00012085,2]
[400372268,1767450825347,-500.0,0.00012085,2]
[400372269,1767450825383,-330.46753082,0.00012085,2]
[400372270,1767450825429,-500.0,0.00012085,2]
[400372271,1767450825464,-260.55995648,0.00012085,2]
[400372272,1767450825767,-239.44004352,0.00012085,2]
[400372273,1767450825804,-500.0,0.00012085,2]
[400372274,1767450825839,-500.0,0.00012085,2]
[400372275,1767450825874,-500.0,0.00012085,2]
[400372276,1767450825908,-377.54177349,0.00012085,2]
[400372277,1767450825943,-500.0,0.00012085,2]
[400372278,1767450825976,-500.0,0.00012085,2]
[400372279,1767450826008,-500.0,0.00012085,2]
[400372280,1767450826043,-500.0,0.00012085,2]
[400372281,1767450826074,-500.0,0.00012085,2]
[400372282,1767450826111,-266.04636598,0.00012085,2]
[400372283,1767450826443,-233.95363402,0.00012085,2]
[400372284,1767450826477,-500.0,0.00012085,2]
[400372285,1767450826511,-500.0,0.00012085,2]
[400372286,1767450826545,-448.08118129,0.00012085,2]
[400372287,1767450826577,-500.0,0.00012085,2]
[400372288,1767450826611,-500.0,0.00012085,2]
[400372289,1767450826646,-500.0,0.00012085,2]
[400372290,1767450826679,-500.0,0.00012085,2]
[400372291,1767450826712,-500.0,0.00012085,2]
[400372292,1767450826744,-500.0,0.00012085,2]
[400372293,1767450826776,-135.94036938,0.00012085,2]
[400372294,1767450826918,-364.05963062,0.00012085,2]
[400372295,1767450826952,-500.0,0.00012085,2]
[400372296,1767450826987,-500.0,0.00012085,2]
[400372297,1767450827023,-500.0,0.00012085,2]
[400372298,1767450827058,-500.0,0.00012085,2]
[400372299,1767450827093,-500.0,0.00012085,2]
[400372300,1767450827130,-500.0,0.00012085,2]
[400372301,1767450827169,-500.0,0.00012085,2]
[400372302,1767450827205,-500.0,0.00012085,2]
[400372303,1767450827406,-500.0,0.00012085,2]
[400372304,1767450827558,-500.0,0.00012085,2]
[400372305,1767450827595,-500.0,0.00012085,2]
[400372306,1767450827631,-500.0,0.00012085,2]
[400372307,1767450827668,-500.0,0.00012085,2]
[400372308,1767450827704,-500.0,0.00012085,2]
[400372309,1767450827740,-500.0,0.00012085,2]
[400372310,1767450827780,-500.0,0.00012085,2]
[400372311,1767450827816,-500.0,0.00012085,2]
[400372312,1767450827855,-500.0,0.00012085,2]
[400372313,1767450827892,-500.0,0.00012085,2]
[400372314,1767450828121,-347.78293926,0.00012085,2]
[400372315,1767450828157,-500.0,0.00012085,2]
[400372316,1767450828192,-500.0,0.00012085,2]
[400372317,1767450829332,-109.35404692,0.00012086,2]
[400372318,1767450829353,-500.0,0.00012086,2]
[400372319,1767450829371,-500.0,0.00012086,2]
[400372320,1767450829389,-7304.44412148,0.00012086,2]
[400372321,1767450829406,-10000.01,0.00012086,2]
[400372322,1767450896503,239.51,0.00010259,2]
[400372323,1767450897077,479.02,0.00010747,2]
[400372324,1767450897579,718.53,0.00011236,2]
[400372325,1767450932126,-958.04,0.00011724,2]
[400372326,1767450948857,-5000.0,0.00011845,2]
[400372327,1767450949057,569.0,0.000138,45]
[400372328,1767450962804,0.01,0.00011845,2]
[400372329,1767450962833,3276.82396763,0.00011845,2]
[400372330,1767450965742,-353.62557294,0.00011905,2]
[400372331,1767450979699,212.84,0.00010274,2]
[400372332,1767450980250,425.69,0.00010763,2]
[400372333,1767450980741,638.53,0.00011253,2]
[400372334,1767450981114,8015.69885412,0.00011109,2]
[400372335,1767450981142,10000.01,0.00011109,2]
[400372336,1767450981169,10000.01,0.00011109,2]
[400372337,1767450981195,10000.01,0.00011109,2]
[400372338,1767450981220,512.19166138,0.00011109,2]
[400372339,1767450981255,851.38,0.00011742,2]
[400372340,1767450982054,-268.1597608,0.00011965,2]
[400372341,1767450993584,339.69,0.000118,2]
[400372343,1767451061923,248.75,0.00010178,2]
[400372344,1767451062325,497.5,0.00010663,2]
[400372345,1767451062842,746.26,0.00011148,2]
[400372346,1767451079939,460.69,7.992e-05,2]
[400372347,1767451080264,460.69,7.992e-05,2]
[400372351,1767451112293,493.99,0.000113,2]
[400372352,1767451147566,254.86,0.00010232,2]
[400372353,1767451148062,509.73,0.00010719,2]
[400372354,1767451148566,764.59,0.00011207,2]
[400372355,1767451194053,2780.83388907,0.0002876,120]
[400372356,1767451221868,5562.95,0.00011048,2]
[400372357,1767451221898,10000.01,0.00011048,2]
[400372358,1767451221925,10000.01,0.00011048,2]
[400372359,1767451221952,10000.01,0.00011048,2]
[400372360,1767451221978,10000.01,0.00011048,2]
[400372361,1767451222007,403.2955531,0.00011048,2]
[400372362,1767451228958,249.7,0.00010229,2]
[400372363,1767451229379,499.39,0.00010716,2]
[400372364,1767451229789,749.09,0.00011203,2]
[400372365,1767451232114,350.01,0.000113,2]
[400372366,1767451239398,5337.7857537,0.0002876,120]
[400372367,1767451309524,413.09,0.00010242,2]
[400372368,1767451309972,826.19,0.00010729,2]
[400372369,1767451314984,-360.45017998,0.00011217,2]
[400372370,1767451318227,-215.18080952,0.00011217,2]
[400372371,1767451319787,-231.53388265,0.00011217,2]
[400372372,1767451353213,495.39,0.000111,2]
[400372373,1767451389853,397.75,0.00010174,2]
[400372374,1767451390266,795.5,0.00010659,2]
[400372375,1767451396352,-552.57229675,0.00011143,2]
[400372376,1767451398436,-300.0,0.00011143,2]
[400372377,1767451404186,5000.0,0.00011127,2]
[400372378,1767451428120,2072.09,0.00011127,2]
[400372379,1767451428147,2927.91,0.00011127,2]
[400372380,1767451451823,3048.73291231,0.00011127,2]
[400372381,1767451469639,355.97,0.000111,2]
[400372382,1767451470692,377.37,0.00010289,2]
[400372383,1767451471141,754.74,0.00010779,2]
[400372384,1767451510560,531.6070502,0.00010852,2]
[400372385,1767451530527,492.6,0.000111,2]
[400372386,1767451542735,166.25903255,0.00011127,2]
[400372387,1767451553052,371.58,0.00010044,2]
[400372388,1767451553470,743.16,0.00010523,2]
[400372389,1767451553888,230.08100494,0.00011001,2]
[400372390,1767451553917,884.65899506,0.00011001,2]
[400372392,1767451633736,343.2,0.00010038,2]
[400372393,1767451634189,686.41,0.00010516,2]
[400372394,1767451634600,1029.61,0.00010994,2]
[400372398,1767451651945,363.05,0.000111,2]
[400372399,1767451714641,317.0,0.00010037,2]
[400372400,1767451715744,633.99,0.00010515,2]
[400372401,1767451716202,950.99,0.00010993,2]
[400372443,1767451770038,490.01,0.000111,2]
[400372449,1767451794966,295.58,0.0001003,2]
[400372450,1767451795522,591.16,0.00010508,2]
[400372451,1767451795841,886.74,0.00010985,2]
[400372468,1767451831835,-175.81545205,0.00011309,2]
[400372469,1767451831846,-579.0,0.00011309,2]
[400372470,1767451831857,-364.72061264,0.00011423,2]
[400372471,1767451831867,-49.37678284,0.00011463,2]
[400372472,1767451831887,-1038.83719804,0.00011463,2]
[400372475,1767451837796,-94.10601912,0.00011463,2]
[400372476,1767451837805,-490.01,0.000115,2]
[400372477,1767451837816,-207.42573203,0.00011624,2]
[400372478,1767451837826,-26.48190051,0.000118,2]
[400372479,1767451837909,-463.52809949,0.000118,2]
[400372480,1767451837919,-828.10889549,0.00011849,2]
[400372481,1767451837969,-1.85202077,0.00011849,2]
[400372482,1767451837979,-158.88847007,0.00011908,2]
[400372483,1767451837988,-240.00397434,0.0001191,2]
[400372484,1767451837998,-500.0,0.0001191,2]
[400372485,1767451838008,-500.0,0.0001191,2]
[400372486,1767451838017,-500.0,0.0001191,2]
[400372487,1767451838027,-292.83683056,0.0001191,2]
[400372488,1767451838036,-500.0,0.0001191,2]
[400372489,1767451838046,-500.0,0.0001191,2]
[400372490,1767451838055,-500.0,0.0001191,2]
[400372491,1767451838065,-500.0,0.0001191,2]
[400372492,1767451838074,-500.0,0.0001191,2]
[400372493,1767451838084,-500.0,0.0001191,2]
[400372494,1767451838094,-500.0,0.0001191,2]
[400372495,1767451838104,-500.0,0.0001191,2]
[400372496,1767451838114,-500.0,0.0001191,2]
[400372497,1767451838124,-500.0,0.0001191,2]
[400372498,1767451838134,-500.0,0.0001191,2]
[400372499,1767451838144,-500.0,0.0001191,2]
[400372500,1767451838153,-500.0,0.0001191,2]
[400372501,1767451838163,-500.0,0.0001191,2]
[400372502,1767451838173,-500.0,0.0001191,2]
[400372503,1767451838182,-459.22917707,0.0001191,2]
[400372504,1767451838192,-500.0,0.0001191,2]
[400372505,1767451838202,-500.0,0.0001191,2]
[400372506,1767451838212,-500.0,0.0001191,2]
[400372507,1767451838222,-500.0,0.0001191,2]
[400372508,1767451838233,-500.0,0.0001191,2]
[400372509,1767451838244,-500.0,0.0001191,2]
[400372510,1767451838255,-500.0,0.0001191,2]
[400372511,1767451838265,-300.0,0.0001191,2]
[400372512,1767451838275,-300.0,0.0001191,2]
[400372513,1767451838285,-300.0,0.0001191,2]
[400372514,1767451838295,-1076.0,0.0001191,2]
[400372515,1767451838305,-300.0,0.0001191,2]
[400372516,1767451838314,-919805.35291052,0.00011911,2]
[400372517,1767451838324,-1477.91,0.00011941,2]
[400372518,1767451838334,-1200.0,0.00012009,2]
[400372519,1767451838344,-300.0,0.00012009,2]
[400372520,1767451838354,-205.41447394,0.00012009,2]
[400372521,1767451838363,-19434.15683221,0.0001201,2]
[400372524,1767451840232,-500.0,0.0001191,2]
[400372525,1767451840242,-500.0,0.0001191,2]
[400372526,1767451840255,-500.0,0.0001191,2]
[400372527,1767451840265,-500.0,0.0001191,2]
[400372528,1767451840275,-500.0,0.0001191,2]
[400372529,1767451840285,-500.0,0.0001191,2]
[400372530,1767451840295,-500.0,0.0001191,2]
[400372531,1767451840305,-500.0,0.0001191,2]
[400372532,1767451840315,-500.0,0.0001191,2]
[400372533,1767451840325,-500.0,0.0001191,2]
[400372534,1767451840335,-500.0,0.0001191,2]
[400372535,1767451840345,-500.0,0.0001191,2]
[400372536,1767451840355,-500.0,0.0001191,2]
[400372537,1767451840364,-500.0,0.0001191,2]
[400372538,1767451840374,-453.13203237,0.0001191,2]
[400372539,1767451840384,-500.0,0.0001191,2]
[400372540,1767451840395,-500.0,0.0001191,2]
[400372541,1767451840405,-500.0,0.0001191,2]
[400372542,1767451840415,-500.0,0.0001191,2]
[400372543,1767451840425,-156.60837965,0.0001191,2]
[400372544,1767451840435,-500.0,0.0001191,2]
[400372545,1767451840446,-500.0,0.0001191,2]
[400372546,1767451840461,-500.0,0.0001191,2]
[400372547,1767451840471,-179.83000506,0.0001191,2]
[400372548,1767451840481,-434.77829393,0.0001191,2]
[400372549,1767451840491,-500.0,0.0001191,2]
[400372550,1767451840502,-500.0,0.0001191,2]
[400372551,1767451840512,-544.80811813,0.0001191,2]
[400372552,1767451840521,-500.0,0.0001191,2]
[400372553,1767451840532,-500.0,0.0001191,2]
[400372554,1767451840542,-500.0,0.0001191,2]
[400372555,1767451840552,-500.0,0.0001191,2]
[400372556,1767451840562,-500.0,0.0001191,2]
[400372557,1767451840571,-500.0,0.0001191,2]
[400372558,1767451840581,-500.0,0.0001191,2]
[400372559,1767451840590,-500.0,0.0001191,2]
[400372560,1767451840600,-500.0,0.0001191,2]
[400372561,1767451840609,-500.0,0.0001191,2]
[400372562,1767451840619,-500.0,0.0001191,2]
[400372563,1767451840629,-500.0,0.0001191,2]
[400372564,1767451840638,-500.0,0.0001191,2]
[400372565,1767451840648,-500.0,0.0001191,2]
[400372566,1767451840657,-500.0,0.0001191,2]
[400372567,1767451840667,-500.0,0.0001191,2]
[400372568,1767451840676,-500.0,0.0001191,2]
[400372569,1767451840685,-15504.48483689,0.0001201,2]
[400372577,1767451846566,-208.60778142,0.00011791,2]
[400372578,1767451846575,-500.0,0.0001191,2]
[400372579,1767451846585,-500.0,0.0001191,2]
[400372580,1767451846595,-500.0,0.0001191,2]
[400372581,1767451846604,-500.0,0.0001191,2]
[400372582,1767451846614,-500.0,0.0001191,2]
[400372583,1767451846623,-500.0,0.0001191,2]
[400372584,1767451846633,-522.72740086,0.0001191,2]
[400372585,1767451846643,-500.0,0.0001191,2]
[400372586,1767451846653,-500.0,0.0001191,2]
[400372587,1767451846663,-500.0,0.0001191,2]
[400372588,1767451846673,-500.0,0.0001191,2]
[400372589,1767451846682,-15061.3583309,0.0001201,2]
[400372590,1767451846692,-500.0,0.00012011,2]
[400372591,1767451846702,-160.94726979,0.00012045,2]
[400372592,1767451846712,-183.62270644,0.00012084,2]
[400372593,1767451846724,-212.372,0.00012084,2]
[400372594,1767451846733,-490.01,0.000122,2]
[400372595,1767451846742,-500.0,0.00012285,2]
[400372596,1767451846752,-300.0,0.00012326,2]
[400372597,1767451846763,-300.0,0.00012326,2]
[400372598,1767451846772,-300.0,0.00012326,2]
[400372599,1767451846781,-300.0,0.00012326,2]
[400372600,1767451846791,-300.0,0.00012326,2]
[400372601,1767451846800,-300.0,0.00012326,2]
[400372602,1767451846809,-300.0,0.00012326,2]
[400372603,1767451846819,-300.0,0.00012326,2]
[400372604,1767451846830,-300.0,0.00012326,2]
[400372605,1767451846839,-300.0,0.00012326,2]
[400372606,1767451846848,-300.0,0.00012326,2]
[400372607,1767451846858,-300.0,0.00012326,2]
[400372608,1767451846871,-300.0,0.00012326,2]
[400372609,1767451846881,-300.0,0.00012326,2]
[400372610,1767451846890,-300.0,0.00012326,2]
[400372611,1767451846900,-600.0,0.00012326,2]
[400372612,1767451846909,-517.74,0.00012329,2]
[400372613,1767451846918,-487.88,0.00012329,2]
[400372614,1767451846928,-614.91954577,0.00012329,2]
[400372615,1767451846938,-1773.49,0.00012418,2]
[400372616,1767451846947,-200.0,0.00012456,2]
[400372617,1767451846956,-225.75054393,0.00012456,2]
[400372618,1767451846966,-500.0,0.00012559,2]
[400372619,1767451846975,-250.0,0.00012593,2]
[400372620,1767451846984,-490.01,0.000126,2]
[400372621,1767451846994,-291.78649388,0.00012833,2]
[400372622,1767451847003,-2069.07,0.00012896,2]
[400372623,1767451847013,-490.01,0.000129,2]
[400372624,1767451847023,-6118.66309715,0.000129,2]
[400372625,1767451847034,-291.1047047,0.0001301,2]
[400372626,1767451847043,-163.3,0.00013071,2]
[400372627,1767451847053,-420.0,0.00013076,2]
[400372628,1767451847062,-420.0,0.00013076,2]
[400372629,1767451847072,-420.0,0.00013076,2]
[400372630,1767451847082,-420.0,0.00013076,2]
[400372631,1767451847093,-420.0,0.00013163,2]
[400372632,1767451847104,-247.12,0.00013163,2]
[400372633,1767451847114,-247.12,0.00013163,2]
[400372634,1767451847124,-247.12,0.00013163,2]
[400372635,1767451847134,-247.12,0.00013163,2]
[400372636,1767451847144,-247.12,0.00013163,2]
[400372637,1767451847154,-247.12,0.00013163,2]
[400372638,1767451847164,-247.13,0.00013163,2]
[400372639,1767451847174,-1680.0,0.00013183,2]
[400372640,1767451847184,-420.0,0.0001321,2]
[400372641,1767451847194,-500.191811,0.00013273,2]
[400372642,1767451847204,-489.45983528,0.00013273,2]
[400372643,1767451847216,-500.0,0.00013273,2]
[400372644,1767451847230,-441.28107065,0.00013273,2]
[400372645,1767451847244,-500.74961065,0.00013273,2]
[400372646,1767451847254,-500.0,0.00013273,2]
[400372647,1767451847264,-500.0,0.00013273,2]
[400372648,1767451847274,-500.91796421,0.00013273,2]
[400372649,1767451847284,-500.0,0.00013273,2]
[400372650,1767451847295,-500.70079178,0.00013273,2]
[400372651,1767451847305,-161.79331584,0.00013273,2]
[400372652,1767451847316,-500.0,0.00013273,2]
[400372653,1767451847326,-500.55502892,0.00013273,2]
[400372654,1767451847336,-371.29616414,0.00013273,2]
[400372655,1767451847345,-500.0,0.00013273,2]
[400372656,1767451847355,-500.40812858,0.00013273,2]
[400372657,1767451847365,-500.0,0.00013273,2]
[400372658,1767451847376,-500.35714375,0.00013273,2]
[400372659,1767451847385,-500.48237545,0.00013273,2]
[400372660,1767451847397,-500.0,0.00013273,2]
[400372661,1767451847407,-530.84744,0.00013273,2]
[400372662,1767451847416,-500.0,0.00013273,2]
[400372663,1767451847426,-502.52676973,0.00013273,2]
[400372664,1767451847529,-500.0,0.00013273,2]
[400372665,1767451847539,-155.65216,0.00013273,2]
[400372666,1767451847548,-500.0,0.00013273,2]
[400372667,1767451847557,-500.0,0.00013273,2]
[400372668,1767451847567,-179.25919058,0.00013273,2]
[400372669,1767451847576,-500.0,0.00013273,2]
[400372670,1767451847586,-500.0,0.00013273,2]
[400372671,1767451847595,-500.0,0.00013273,2]
[400372672,1767451847604,-500.0,0.00013273,2]
[400372673,1767451847613,-500.0,0.00013273,2]
[400372674,1767451847623,-500.0,0.00013273,2]
[400372675,1767451847632,-500.0,0.00013273,2]
[400372676,1767451847642,-490.01,0.000133,2]
[400372677,1767451847651,-2364.65,0.00013373,2]
[400372678,1767451847661,-430.37032291,0.00013423,2]
[400372679,1767451847671,-205.45055031,0.00013424,2]
[400372680,1767451847681,-500.0,0.00013424,2]
[400372681,1767451847690,-500.0,0.00013424,2]
[400372682,1767451847700,-2451.82295825,0.0001352,2]
[400372683,1767451847709,-6014.64117995,0.0001354,2]
[400372684,1767451847719,-720.0,0.00013559,2]
[400372685,1767451847729,-501.75567666,0.00013561,2]
[400372686,1767451847739,-299.999999,0.00013561,2]
[400372687,1767451847748,-500.0,0.00013561,2]
[400372688,1767451847757,-490.01,0.000136,2]
[400372689,1767451847767,-300.0,0.00013673,2]
[400372690,1767451847776,-500.0,0.00013698,2]
[400372691,1767451847785,-500.0,0.00013698,2]
[400372692,1767451847795,-500.0,0.00013698,2]
[400372693,1767451847804,-450.1410394,0.00013698,2]
[400372694,1767451847814,-529.5136224,0.00013698,2]
[400372695,1767451847823,-191.60962152,0.00013698,2]
[400372696,1767451847833,-500.0,0.00013698,2]
[400372697,1767451847842,-500.0,0.00013698,2]
[400372698,1767451847851,-500.0,0.00013698,2]
[400372699,1767451847861,-500.0,0.00013698,2]
[400372700,1767451847870,-500.0,0.00013698,2]
[400372701,1767451847880,-500.0,0.00013698,2]
[400372702,1767451847889,-500.0,0.00013698,2]
[400372703,1767451847899,-500.0,0.00013698,2]
[400372704,1767451847908,-500.0,0.00013698,2]
[400372705,1767451847919,-500.0,0.00013698,2]
[400372706,1767451847940,-500.0,0.00013698,2]
[400372707,1767451847950,-500.0,0.00013698,2]
[400372708,1767451847959,-500.0,0.00013698,2]
[400372709,1767451847969,-500.0,0.00013698,2]
[400372710,1767451847979,-500.0,0.00013698,2]
[400372711,1767451847988,-500.0,0.00013698,2]
[400372712,1767451847998,-500.0,0.00013698,2]
[400372713,1767451848008,-500.0,0.00013698,2]
[400372714,1767451848027,-511.6918153,0.00013698,2]
[400372715,1767451848054,-871.49,0.00013698,2]
[400372716,1767451848080,-871.49,0.00013698,2]
[400372717,1767451848105,-871.49,0.00013698,2]
[400372718,1767451848124,-871.49,0.00013698,2]
[400372719,1767451848144,-871.49,0.00013698,2]
[400372720,1767451848167,-871.49,0.00013698,2]
[400372721,1767451848189,-871.49,0.00013698,2]
[400372722,1767451848211,-871.49,0.00013698,2]
[400372723,1767451848232,-871.49,0.00013698,2]
[400372724,1767451848254,-871.49,0.00013698,2]
[400372725,1767451848274,-871.49,0.00013698,2]
[400372726,1767451848291,-871.49,0.00013698,2]
[400372727,1767451848313,-871.49,0.00013698,2]
[400372728,1767451848328,-871.49,0.00013698,2]
[400372729,1767451848346,-871.49,0.00013698,2]
[400372730,1767451848362,-871.49,0.00013698,2]
[400372731,1767451848379,-871.49,0.00013698,2]
[400372732,1767451848397,-871.49,0.00013698,2]
[400372733,1767451848415,-871.49,0.00013698,2]
[400372734,1767451848432,-871.49,0.00013698,2]
[400372735,1767451848450,-436.85555316,0.00013698,2]
[400372738,1767451865899,-300.0,0.00011909,2]
[400372741,1767451867896,300.0,0.00011909,2]
[400372742,1767451872468,178.96,9.996e-05,2]
[400372743,1767451872887,357.92,0.00010472,2]
[400372744,1767451873390,536.88,0.00010948,2]
[400372745,1767451873791,715.84,0.00011424,2]
[400372746,1767451874193,894.81,0.000119,2]
[400372748,1767451886388,309.21,0.000113,2]
[400372749,1767451886938,309.21,0.000117,2]
[400372752,1767451903607,169.898,0.00011673,2]
[400372753,1767451922346,300.0,0.00011909,2]
[400372754,1767451950484,423.97,0.000119,2]
[400372755,1767451951857,388.58715078,0.00011909,2]
[400372756,1767451951891,500.0,0.00011909,2]
[400372757,1767451951925,500.0,0.00011909,2]
[400372758,1767451951965,347.71112816,0.00011909,2]
[400372759,1767451951997,500.0,0.00011909,2]
[400372760,1767451952035,500.0,0.00011909,2]
[400372761,1767451952069,500.0,0.00011909,2]
[400372762,1767451952103,500.0,0.00011909,2]
[400372763,1767451952142,214.97536599,0.00011909,2]
[400372764,1767451952176,500.0,0.00011909,2]
[400372765,1767451952213,500.0,0.00011909,2]
[400372766,1767451952259,500.0,0.00011909,2]
[400372767,1767451952295,500.0,0.00011909,2]
[400372768,1767451952349,500.0,0.00011909,2]